Cogmind - Beta 16 @@@ ROGUE MODE // 2026.02.06 @ 21:14:32 Player: HeyPrincessBot Result: Destroyed by G-34 Mercenary with Small Laser Performance ------------- Evolutions (1) 500 Regions Visited (2) 400 Robots Destroyed (8) 40 Value Destroyed (176) 176 Prototype IDs (0) 0 Alien Tech Used (0) 0 Bonus (0) 0 TOTAL SCORE: 1116 Bonus ------- None Cogmind --------- Core Integrity 0/400 Matter 225/300 Energy 99/100 System Corruption 0% Temperature Cool (12) Movement Core (100) Ox1 Location -9/Materials Parts ------- > --- POWER (1) -------- (None) > --- PROPULSION (2) --- (None) > --- UTILITY (4) ------ Small Storage Unit > --- WEAPON (2) ------- (None) > --- INVENTORY (8) ---- Light Ion Engine Light Deuterium Engine Light Deuterium Engine Armored Treads Armored Treads Advanced Targeting Computer Advanced Targeting Computer Light Assault Rifle Peak State ------------ > --- POWER ------------ Light Ion Engine > --- PROPULSION ------- Aluminum Leg Aluminum Leg > --- UTILITY ---------- Heat Sink Small Storage Unit Terrain Scanner > --- WEAPON ----------- Light Assault Rifle Light Assault Rifle > --- INVENTORY -------- Wheel Wheel Wheel Flight Unit Datajack [Rating: 8] Favorites ----------- Power Light Ion Engine Engine Light Ion Engine Propulsion Aluminum Leg Leg Aluminum Leg Wheel Wheel Flight Unit Flight Unit Utility Small Storage Unit Device Terrain Scanner Storage Small Storage Unit Weapon Light Assault Rifle Energy Gun Small Laser Ballistic Gun Light Assault Rifle Build | -11 -10 -9 ------- Run | Yrd Mat Mat Slots Evolved 2 | . . 2 Power . | . . . Propulsion . | . . . Utility 2 | . . 2 Weapon . | . . . Parts Attached 17 | 6 3 8 Power 3 | 1 . 2 Engine 3 | 1 . 2 Core . | . . . Reactor . | . . . Propulsion 6 | 3 . 3 Treads . | . . . Leg 2 | 2 . . Wheel 2 | 1 . 1 Hover . | . . . Flight 2 | . . 2 Utility 4 | . 3 1 Device 2 | . 1 1 Storage 2 | . 2 . Processor . | . . . Hackware . | . . . Protection . | . . . Artifact . | . . . Weapon 4 | 2 . 2 Energy Gun 1 | . . 1 Energy Cannon . | . . . Ballistic Gun 3 | 2 . 1 Ballistic Cannon . | . . . Launcher . | . . . Special Weapon . | . . . Impact Weapon . | . . . Slashing Weapon . | . . . Piercing Weapon . | . . . Special Melee Weapon . | . . . Unidentified Prototypes . | . . . Parts Lost 10 | . . 10 Power 2 | . . 2 Propulsion 4 | . . 4 Utility 2 | . . 2 Weapon 2 | . . 2 Highest Loss Streak 9 | . . 9 To Critical Strikes . | . . . Average Backups 5 | 3 5 6 Power . | . . . Propulsion 2 | 1 2 3 Utility . | . 1 . Weapon . | 1 1 . Tool/Special . | . . . Unused Backups 8 | . . 8 Power 2 | . . 2 Propulsion 3 | . . 3 Utility 2 | . . 2 Weapon . | . . . Tool/Special 1 | . . 1 Average Slot Usage (%) 81 | . 94 69 Engine 12 | . 14 11 Leg 19 | . 28 11 Wheel 2 | . . 4 Flight 1 | . . 2 Device 12 | . 12 12 Storage 10 | . 9 11 Ballistic Gun 20 | . 28 13 Peak Build Rating 8 | 5 7 8 Average Rating 6 | 2 6 6 On Entrance 4 | . 5 7 Avg Prop Armor Cover (%) . | . . . Naked Turns . | . . . Heaviest Build 14 | 6 12 14 Greatest Support 20 | 20 20 20 Greatest Overweight (x) 1 | . . 1 Average Overweight (x) . | . . . Largest Inventory Capacity 25 | 5 25 8 Average Capacity 7 | 5 7 8 Most Carried 8 | 5 6 8 Average Carried 5 | 3 5 6 Final Capacity 8 | 5 8 8 Final Carried 8 | 4 6 8 Class Distribution -------------------- 100% | Mutant Dominant Class ---------------- Mutant | -10/Materials Mutant | -9/Materials Resources | -11 -10 -9 ----------- Run | Yrd Mat Mat Matter Collected 381 | 281 . 100 Remotely . | . . . Salvage Created 244 | 45 . 199 Parts 15 | 1 . 14 Haulers Intercepted . | . . . Recyclers Shooed . | . . . Parts Field Recycled . | . . . Retrieved Matter . | . . . Parts Self-Destructed . | . . . Prevented . | . . . Parts Restored . | . . . Kills | -11 -10 -9 ------- Run | Yrd Mat Mat Combat Hostiles Destroyed 8 | 1 . 7 Guns 8 | 1 . 7 Classes Destroyed 2 | 1 . 1 Swarmer 4 | . . 4 Grunt 4 | 1 . 3 Best Kill Streak 4 | 1 . 4 Combat Bots Only 4 | 1 . 4 Max Kills in Single Turn 1 | 1 . 1 Gunslinging . | . . . Exploded . | . . . Melee . | . . . Uniques/NPCs Destroyed . | . . . Combat | -11 -10 -9 -------- Run | Yrd Mat Mat Hostile Shots Fired 156 | 6 . 150 Missed 47 | 2 . 45 Hits 109 | 4 . 105 Projectile 109 | 4 . 105 Critical Strikes 2 | . . 2 Damage Taken 1230 | 45 . 1185 Core 421 | 21 . 400 Absorbed by Shields . | . . . Core Remaining (%) 91 | 91 91 . Volleys Fired 38 | 7 . 31 Largest 2 | 1 . 2 Hottest 60 | 20 . 60 Shots Fired 65 | 7 . 58 Gun 65 | 7 . 58 Cannon . | . . . Launcher . | . . . Special . | . . . Kinetic 55 | 7 . 48 Thermal 10 | . . 10 Explosive . | . . . Electromagnetic . | . . . Robot Hit Streak 12 | 6 . 12 Robot Miss Streak 5 | 1 . 5 Penetration Max . | . . . Secondary Targets 5 | . . 5 Max Gunslinging Chain 1 | . . 1 Shots Hit Robots 44 | 6 . 38 Core Hits 17 | 2 . 15 Critical Kills . | . . . Critical Parts Destroyed . | . . . Critical Strikes . | . . . Melee Attacks . | . . . Impact . | . . . Slashing . | . . . Piercing . | . . . Sneak Attacks . | . . . Combat Hostiles . | . . . Follow-up Attacks . | . . . Damage Inflicted 448 | 74 . 374 Guns 448 | 74 . 374 Cannons . | . . . Explosions . | . . . Melee . | . . . Ramming . | . . . Kinetic 338 | 74 . 264 Thermal 110 | . . 110 Explosive . | . . . Electromagnetic . | . . . Impact . | . . . Slashing . | . . . Piercing . | . . . Highest Corruption 2 | . 2 . Average Corruption 2 | . 2 . Corruption Purged . | . . . Corruption Blocked . | . . . Effects 3 | . 3 . Matter Fused 2 | . 2 . Heat Flow Errors 1 | . 1 . Overload Shots . | . . . Overflow Damage . | . . . Projectiles . | . . . Explosions . | . . . Melee . | . . . Knockbacks . | . . . Impact . | . . . Kinetic . | . . . Secondary . | . . . Self-Inflicted Damage . | . . . Shots . | . . . Rammed . | . . . Targets Rammed . | . . . Kicked . | . . . Crushed . | . . . Highest Temperature 256 | . 256 33 Average Temperature 54 | . 137 8 Received Heat Transfer 564 | 24 . 540 Siege Activations . | . . . Martial Activations . | . . . Shielding Activations . | . . . Robots Disrupted . | . . . Combat Hostiles . | . . . Robots Corrupted . | . . . Combat Hostiles . | . . . Parts Fried . | . . . Impact Corruptions . | . . . Robots Melted . | . . . Combat Hostiles . | . . . Parts Melted . | . . . Heat Transferred 250 | . . 250 Parts Sabotaged . | . . . Parts Stolen . | . . . Parts Stripped . | . . . Power Chain Reactions . | . . . Alert | -11 -10 -9 ------- Run | Yrd Mat Mat Maximum Alert Level . | . . . Low Security (%) 100 | 100 100 100 Level 1 . | . . . Level 2 . | . . . Level 3 . | . . . Level 4 . | . . . Level 5 . | . . . High Security . | . . . Max Security . | . . . Peak Influence 80 | 20 6 80 Initial 6 | . 6 . Average 15 | 1 . 33 Influence Increases 210 | 20 . 190 Destroy 0b10 Robot/C 160 | 20 . 140 Destroy Leader 20 | . . 20 Lose Combat Pursuer 30 | . . 30 Influence Decreases 210 | 10 10 190 Entered New Map 4 | . 4 . Time Decay 126 | 10 6 110 Lost Part 80 | . . 80 Squads Dispatched 1 | . . 1 Investigation . | . . . Extermination . | . . . Reinforcement 1 | . . 1 Assault . | . . . Garrison . | . . . Intercept . | . . . Searches Triggered . | . . . Construction Impeded . | . . . Haulers Reinforced . | . . . Active Scanning Responses . | . . . Cargo Convoy Interrupts . | . . . Stealth | -11 -10 -9 --------- Run | Yrd Mat Mat Distress Signals 2 | . . 2 Communications Jammed . | . . . Distress Signals . | . . . Times Spotted 26 | 1 1 24 Peak Tracking Total 8 | 1 2 8 Tactical Retreats 1 | . . 1 Traps | -11 -10 -9 ------- Run | Yrd Mat Mat Traps Triggered 1 | . 1 . Indirectly . | . . . Trap Hack Attempts . | . . . Triggered . | . . . Disarmed . | . . . Reprogrammed . | . . . Reused . | . . . Traps Extracted . | . . . Installed . | . . . Triggered . | . . . Machines | -11 -10 -9 ---------- Run | Yrd Mat Mat Machines Disabled . | . . . Max in Single Turn . | . . . Machines Repaired . | . . . Machines Dismantled . | . . . Machines Sabotaged . | . . . Overloaded Fab Kills . | . . . Hacking | -11 -10 -9 --------- Run | Yrd Mat Mat Machines Accessed 5 | . 3 2 Terminals 3 | . 2 1 Fabricators . | . . . Repair Stations . | . . . Recycling Units 2 | . 1 1 Scanalyzers . | . . . Garrison Access . | . . . Total Hacks 9 | . 5 4 Successful 4 | . 3 1 Failed 5 | . 2 3 Catastrophic . | . . . Database Lockouts . | . . . Manual . | . . . Terminals 6 | . 4 2 Fabricators . | . . . Repair Stations . | . . . Recycling Units 3 | . 1 2 Scanalyzers . | . . . Garrison Access . | . . . Terminal Hacks 3 | . 3 . Record 1 | . 1 . Locate Traps 1 | . 1 . Dispatch Records 1 | . 1 . Fabricator Hacks . | . . . Repair Station Hacks . | . . . Recycling Unit Hacks 1 | . . 1 Report Inventory 1 | . . 1 Scanalyzer . | . . . Garrison Access Hacks . | . . . Unauthorized Hacks . | . . . Terminals . | . . . Fabricators . | . . . Repair Stations . | . . . Recycling Units . | . . . Scanalyzers . | . . . Garrison Access . | . . . Data Cores Recovered . | . . . Used . | . . . Hacking Detections 4 | . 2 2 Full Trace Events . | . . . Feedback Events . | . . . Feedback Blocked . | . . . Robot Schematics Acquired . | . . . Robots Built . | . . . Authchips . | . . . Time . | . . . Total Robot Build Rating . | . . . Part Schematics Acquired . | . . . Parts Built . | . . . Authchips . | . . . Time . | . . . Total Part Build Rating . | . . . Part Studies Acquired . | . . . Parts Repaired . | . . . Time . | . . . Parts Recycled . | . . . Recycled Matter . | . . . Retrieved Matter . | . . . Retrieved Components . | . . . Parts Scanalyzed . | . . . Part Schematics Acquired . | . . . Parts Damaged . | . . . Bothacking | -11 -10 -9 ------------ Run | Yrd Mat Mat Used RIF Installer . | . . . Robots Hacked . | . . . Non-combat . | . . . Combat . | . . . Robot Hacks Applied . | . . . Relay Couplers Released . | . . . Fabnet Peak Effective % . | . . . Robots Rewired . | . . . Allies Hacked . | . . . Hacks Repelled . | . . . Allies | -11 -10 -9 -------- Run | Yrd Mat Mat Total Allies . | . . . Largest Group . | . . . Highest-Rated Group . | . . . Highest-Rated Ally . | . . . Total Orders . | . . . Ally Attacks . | . . . Total Damage . | . . . Kills . | . . . Allies Corrupted . | . . . Allies Melted . | . . . Intel | -11 -10 -9 ------- Run | Yrd Mat Mat Active Infowar (turns) 448 | . 246 202 Terrain 448 | . 246 202 Robot Analysis Total . | . . . Derelict Logs Recovered . | . . . Drone Launches . | . . . Drone Recoveries . | . . . Exploration | -11 -10 -9 ------------- Run | Yrd Mat Mat Turns Passed 627 | 90 259 278 Spaces Moved 440 | 74 200 166 Core 40 | 38 . 2 Treads . | . . . Legs 306 | 36 200 70 Wheels 79 | . . 79 Hover . | . . . Flight 15 | . . 15 Fastest Speed 50 | 50 120 80 Average Speed 106 | 84 120 100 Slowest Speed 120 | 120 120 120 Overloaded Moves . | . . . Propulsion Burnouts . | . . . Robots Hopped . | . . . Potential Cave-ins . | . . . Cave-ins Triggered . | . . . Exploration Rate (%) 21 | 6 39 18 Regions Visited 2 Branch Regions . Pre-discovered Areas . | . . . Known Exits Taken . | . . . Unknown Exits Taken 2 | 1 1 . Scrap Searched . | . . . Spaces Dug . | . . . Terrain Destroyed . | . . . Melee . | . . . Projectile . | . . . AOE . | . . . Terrain Rammed . | . . . Walls Destroyed . | . . . Machines Disabled . | . . . Actions | -11 -10 -9 --------- Run | Yrd Mat Mat Total 538 | 94 218 226 Wait 14 | . 12 2 Move 438 | 73 199 166 Hop . | . . . Pick Up 22 | 8 3 11 Fast Attach 3 | 1 2 . Attach 10 | 4 1 5 Detach . | . . . Swap 7 | 1 . 6 Drop 6 | . 1 5 Fire 38 | 7 . 31 Melee . | . . . Ram . | . . . Kick . | . . . Crush . | . . . Escape Stasis . | . . . Rewire . | . . . Trap . | . . . Miscellaneous . | . . . Route ------- -11/Scrapyard -10/Materials -9/Materials History --------- Turn | Location | Event 2 | -11/Scrapyard | Met Revision 17 61 | -11/Scrapyard | Discovered new exit (range 8) 91 | -11/Scrapyard | Entered Materials 269 | -10/Materials | Discovered new exit (range 5) 316 | -10/Materials | Build established: Mutant 350 | -10/Materials | Entered another Materials area 350 | -9/Materials | Evolved 2 slots: Utility x2 562 | -9/Materials | Core integrity fell below 50% 625 | -9/Materials | Core integrity fell below 20% 628 | -9/Materials | Destroyed by G-34 Mercenary with Small Laser Last Messages --------------- K-01 Serf collects debris. U-05 Engineer suffers critical hit (Burn). U-05 Engineer destroyed. Ion Engine destroyed. Dropped Datajack. Dropped Flight Unit. Dropped Wheel. Dropped Aluminum Leg. Acquired Adv. Targeting Computer. Acquired Lgt. Deuterium Engine. Acquired Arm. Treads. Wheel destroyed. K-01 Serf collects debris. C-30 ARC bursts open, deploying its payload. S-10 Pest unfolds itself. Heat Sink destroyed. S-10 Pest destroyed. Lgt. Ion Engine destroyed. K-01 Serf collects debris. Wheel destroyed. Map ----- +----------------------------------------------------+ | ?????????????????????????????????????????????????? | | ?????????????????????????????????????????????????? | | ?????????????????????????????????????????????????? | | ?????????????????????????????????????????????????? | | ?????????????????????????????????????????????????? | | ?????????????????????????????????????????????????? | | ?????????????????????????????????????????????????? | | ?????????????????????????????????????????????????? | | ?????????????????????????????????????????????????? | | ????????????????????????????????????? ?????????? | | ????????????????????????????????????? #????????? | | ????????????????????????????????????? #????????? | | ????????????????????????????????????# #????????? | | ????????????????????????????????????+ +????????? | | ????????????????????????????????????# #????????? | | ?????????????????########???????????# #????????? | | ??????????????# """T""" #???????????# #????????? | | ??????????????# #???????????# ###??????? | | ??????????????# #???????????# ???????? | | ??????????????# #???????????# ????????? | | ??????????????# """ """ #???????????# #????????? | | ??????????????# """ """ #???????????# #????????? | | ??????????????# """ """ #???????????# #????????? | | ??????????????# #???????????# #?######?? | | ??????????#########;################# #?= #?? | | ??? g @ #= #?? | | ??? ag% g # "" #?? | | ??? % ssga g Y + """#?? | | ????#+########/######################k # S"#?? | | ???????????? ??????????????????????# # #?? | | ???????????# ??????????????????###### ########?? | | ???????????#???????????????????#= #???????? | | ???????????????????????????????#= #???????? | | ???????????????????????????????#* #???????? | | ???????????????????????????????#* = #???????? | | ???????????????????????????????#! =/= #???????? | | ???????????????????????????????#! ## ########?? | | ???????????????????????????????###### # =#?? | | ????????????????????????????????????# # #?? | | ????????????????????????????????????# + """ #?? | | ????????????????????????????????????# # """ +?? | | ????????????????????????????????????# # """ #?? | | ????????????????????????????????????# #? #?? | | ?????????????????????????????????#??# ###?####+#?? | | ????????????????????????????????????# #??????????? | | ????????????????????????????????????# #??????????? | | ??????????????????????#?????????????# #??????????? | | ????????????????????????#???###?????# #?#????????? | | ??????????????????????????### ?????# #??????????? | | ????????????????????#?????# #????# #??????????? | +----------------------------------------------------+ Best States ------------- Heat Dissipation 38 Energy Generation 10 Energy Capacity 250 Matter Stores 300 Matter Capacity 300 Sight Range 16 Terrain Scan Range 14 Terrain Scan Density 10 Evasion (%) 55 Item Schematics ----------------- None Robot Schematics ------------------ None Fabricated ------------ Nothing Repaired ---------- Nothing Studied --------- None Alien Tech Used ----------------- None Achievements -------------- DATA ERROR: Steam Global Achievement% Challenges ------------ None Game ------ Seed WeldingAutogunChronowheel Manual? 0 Play Time 00:09:24 Cumulative 1.2 hours Start 2026.02.06 @ 21:06:39 End 2026.02.06 @ 21:14:32 Sessions 1 Manual Loads 0 Difficulty Rogue Special Mode None Game No. 2 Rogue 2 Adventurer 0 Explorer 0 Win Type - Total 0 Types 0/0/0/0/0/0/0/0/0/0 Lore% 1 Gallery% 4 Achievement% 4 Wizard Run 0 Options --------- Layout 1 ASCII 0 Keyboard 0 Movement Mouse Keybinds 0 Fullscreen 2 Font 24/Terminus Map View 50x35 Zoom Use 0% Tactical HUD 0 Map Filters NONE Filters NONE Steam 1 RUN: 8a3d98e2-fbd2-402d-a4b1-6916c928b11a